[Event "21st Dubai Open 2019"]
[Site "Dubai"]
[Date "2019.04.09"]
[Round "9.37"]
[White "Nitish Belurkar"]
[Black "Ansat, Aldiyar"]
[Result "0-1"]
[ECO "B23"]
[WhiteElo "2327"]
[BlackElo "2117"]
[Annotator "NA"]
[PlyCount "100"]
[EventDate "2019.04.01"]
[EventType "swiss"]
[EventCountry "UAE"]
[SourceTitle "playchess.com"]
[Source "ChessBase"]
[SourceQuality "1"]
[TimeControl "5400+30"]

1. e4 {[%emt 0:00:00]} c5 {[%emt 0:00:00]} 2. Ne2 {[%emt 0:00:00]} Nc6 {[%emt 0:00:22]} 3. Nbc3 {[%emt 0:00:00]} g6 {[%emt 0:00:12]} 4. h3 {[%emt 0:00:51]} Bg7 {[%emt 0:00:17]} 5. d3 {[%emt 0:00:09]} e6 {[%emt 0:00:38]} 6. g4 {[%emt 0:02:07]} Nge7 {[%emt 0:03:26]} 7. Bg2 {[%emt 0:00:13]} O-O {[%emt 0:01:01]} 8. O-O {[%emt 0:01:50]} d6 {[%emt 0:01:18]} 9. f4 {[%emt 0:04:46]} f5 {[%emt 0:00:21]} 10. Ng3 {[%emt 0:04:41]} Rb8 {[%emt 0:05:25]} 11. a4 {[%emt 0:00:35]} a6 {[%emt 0:01:44]} 12. Be3 {[%emt 0:07:05]} Nd4 {[%emt 0:02:59]} 13. Rb1 {[%emt 0:03:33]} Bd7 {[%emt 0:09:03]} 14. Bd2 {[%emt 0:06:07]} Nec6 {[%emt 0:08:34]} 15. Nce2 {[%emt 0:06:35]} Nxe2+ {[%emt 0:15:30]} 16. Nxe2 {[%emt 0:01:39]} Nd4 {[%emt 0:03:26]} 17. b3 {[%emt 0:06:41]} fxg4 {[%emt 0:07:06]} 18. hxg4 {[%emt 0:00:17]} Qh4 {[%emt 0:02:30]} 19. c3 {[%emt 0:00:47]} Nxe2+ {[%emt 0:03:39]} 20. Qxe2 {[%emt 0:00:25]} g5 {[%emt 0:01:12]} 21. Be1 {[%emt 0:13:34]} Qh6 {[%emt 0:00:21]} 22. f5 {[%emt 0:00:05]} Be5 {[%emt 0:08:04]} 23. Qf3 {[%emt 0:03:05]} exf5 {[%emt 0:05:41]} 24. gxf5 {[%emt 0:00:20]} Rf7 {[%emt 0:08:35]} 25. Qh3 {[%emt 0:07:13]} Qg7 {[%emt 0:01:18]} 26. Rc1 {[%emt 0:02:22]} Rbf8 {[%emt 0:03:08]} 27. Bg3 {[%emt 0:04:22]} Bxc3 {[%emt 0:03:14]} 28. Bxd6 {[%emt 0:00:25]} Bd4+ {[%emt 0:02:16]} 29. Kh2 {[%emt 0:01:41]} Re8 {[%emt 0:01:27]} 30. Bg3 {[%emt 0:01:36]} Rf6 {[%emt 0:00:17]} 31. Qg4 {[%emt 0:00:15]} h5 {[%emt 0:00:10]} 32. Qd1 {[%emt 0:00:25]} h4 {[%emt 0:00:55]} 33. Bf2 {[%emt 0:02:05]} Be5+ {[%emt 0:00:37]} 34. Kh1 {[%emt 0:06:11]} g4 {[%emt 0:00:15]} 35. Rg1 {[%emt 0:00:05]} g3 36. Bh3 {[%emt 0:00:12]} Rg6 {[%emt 0:02:17]} 37. Rg2 {[%emt 0:03:13]} b6 {[%emt 0:00:00]} 38. Be3 {[%emt 0:00:30]} Rd6 {[%emt 0:00:25]} 39. Qe2 {[%emt 0:06:24]} Bc6 {[%emt 0:00:29]} 40. Rf1 {[%emt 0:05:28]} Red8 {[%emt 0:00:09]} 41. Qh5 {[%emt 0:00:27]} Bf6 {[%emt 0:01:00]} 42. Rf4 {[%emt 0:01:45]} Qh7 {[%emt 0:00:26]} 43. Qe2 {[%emt 0:00:36]} Rxd3 {[%emt 0:00:34]} 44. Rg4+ {[%emt 0:00:05]} Kf8 {[%emt 0:00:38]} 45. Rg6 {[%emt 0:00:37]} Rd1+ {[%emt 0:00:41]} 46. Bg1 {[%emt 0:00:26]} Qe7 {[%emt 0:00:34]} 47. Qg4 {[%emt 0:00:45]} Qf7 {[%emt 0:00:36]} 48. Qf4 {[%emt 0:00:32]} R8d4 {[%emt 0:00:36]} 49. Qh6+ {[%emt 0:00:51]} Ke7 {[%emt 0:00:12]} 50. e5 {[%emt 0:00:32]} Rxg1+ {[%emt 0:00:18]} 0-1